fUST/lending_fUST_20250830
["ID","MTS","AMOUNT","RATE_DAILY","PERIOD"]
[382186548,1756537840101,-480.0,0.00023532,2]
[382186550,1756537840112,-575.23,0.00023532,2]
[382186551,1756537840124,-480.0,0.00023532,2]
[382186552,1756537840139,-480.0,0.00023532,2]
[382186553,1756537840149,-480.0,0.00023532,2]
[382186554,1756537840159,-1376.87,0.00023532,2]
[382186555,1756537840169,-483.73789284,0.00023532,2]
[382186556,1756537840179,-480.0,0.00023532,2]
[382186558,1756537840189,-480.0,0.00023532,2]
[382186560,1756537840198,-480.0,0.00023532,2]
[382186562,1756537840207,-480.0,0.00023532,2]
[382186564,1756537840217,-480.0,0.00023532,2]
[382186565,1756537840230,-525.07,0.00023532,2]
[382186566,1756537840240,-480.0,0.00023532,2]
[382186567,1756537840250,-1373.28,0.00023532,2]
[382186568,1756537840260,-271.38673261,0.00023532,2]
[382186569,1756537840271,-1626.35,0.00023532,2]
[382186570,1756537840281,-480.0,0.00023532,2]
[382186571,1756537840291,-1389.31,0.00023532,2]
[382186572,1756537840303,-480.0,0.00023532,2]
[382186573,1756537840312,-1473.01,0.00023532,2]
[382186574,1756537840321,-1675.39,0.00023532,2]
[382186575,1756537840331,-480.0,0.00023532,2]
[382186576,1756537840341,-591.62,0.00023532,2]
[382186577,1756537840350,-1600.23,0.00023532,2]
[382186578,1756537840360,-480.0,0.00023532,2]
[382186579,1756537840369,-480.0,0.00023532,2]
[382186580,1756537840379,-480.0,0.00023532,2]
[382186581,1756537840388,-480.0,0.00023532,2]
[382186582,1756537840398,-1889.35,0.00023532,2]
[382186583,1756537840407,-1330.11,0.00023532,2]
[382186584,1756537840417,-480.0,0.00023532,2]
[382186585,1756537840427,-480.0,0.00023532,2]
[382186586,1756537840436,-480.0,0.00023532,2]
[382186587,1756537840446,-480.0,0.00023532,2]
[382186588,1756537840455,-1359.96,0.00023532,2]
[382186589,1756537840465,-746.75,0.00023532,2]
[382186590,1756537840475,-5962.38,0.00023532,2]
[382186591,1756537840484,-7941.45,0.00023532,2]
[382186592,1756537840493,-1728.49,0.00023532,2]
[382186593,1756537840503,-570.16,0.00023532,2]
[382186594,1756537840512,-1315.69,0.00023532,2]
[382186596,1756537840522,-2027.64,0.00023532,2]
[382186597,1756537840532,-480.0,0.00023532,2]
[382186598,1756537840541,-480.0,0.00023532,2]
[382186599,1756537840552,-480.0,0.00023532,2]
[382186601,1756537840561,-480.0,0.00023532,2]
[382186602,1756537840571,-480.0,0.00023532,2]
[382186603,1756537840580,-480.0,0.00023532,2]
[382186604,1756537840590,-480.0,0.00023532,2]
[382186605,1756537840600,-2196.57,0.00023532,2]
[382186606,1756537840610,-480.0,0.00023532,2]
[382186608,1756537840619,-480.0,0.00023532,2]
[382186610,1756537840629,-480.0,0.00023532,2]
[382186612,1756537840639,-480.0,0.00023532,2]
[382186613,1756537840648,-572.8,0.00023532,2]
[382186614,1756537840657,-480.0,0.00023532,2]
[382186615,1756537840667,-880.8,0.00023532,2]
[382186616,1756537840676,-2157.83,0.00023532,2]
[382186617,1756537840685,-480.0,0.00023532,2]
[382186618,1756537840695,-480.0,0.00023532,2]
[382186619,1756537840704,-482.88888136,0.00023532,2]
[382186620,1756537840714,-571.71,0.00023532,2]
[382186621,1756537840723,-480.0,0.00023532,2]
[382186622,1756537840733,-480.0,0.00023532,2]
[382186623,1756537840742,-480.0,0.00023532,2]
[382186624,1756537840752,-1248.56,0.00023532,2]
[382186625,1756537840762,-665.74,0.00023532,2]
[382186626,1756537840772,-2882.68,0.00023532,2]
[382186627,1756537840781,-480.0,0.00023532,2]
[382186628,1756537840791,-581.79,0.00023532,2]
[382186629,1756537840803,-480.0,0.00023532,2]
[382186630,1756537840812,-1443.18,0.00023532,2]
[382186631,1756537840821,-480.0,0.00023532,2]
[382186632,1756537840831,-480.0,0.00023532,2]
[382186633,1756537840840,-573.19,0.00023532,2]
[382186635,1756537840850,-480.0,0.00023532,2]
[382186636,1756537840859,-1217.92,0.00023532,2]
[382186637,1756537840868,-480.0,0.00023532,2]
[382186638,1756537840878,-500.0,0.00023532,2]
[382186639,1756537840887,-500.0,0.00023532,2]
[382186640,1756537840896,-500.0,0.00023532,2]
[382186641,1756537840906,-500.0,0.00023532,2]
[382186642,1756537840915,-500.0,0.00023532,2]
[382186643,1756537840924,-155.51245469,0.00023532,2]
[382186644,1756537840933,-480.0,0.00023532,2]
[382186645,1756537840943,-480.0,0.00023532,2]
[382186646,1756537840952,-500.54,0.00023532,2]
[382186647,1756537840961,-480.0,0.00023532,2]
[382186648,1756537840971,-480.0,0.00023532,2]
[382186650,1756537840980,-572.79,0.00023532,2]
[382186652,1756537840989,-480.0,0.00023532,2]
[382186653,1756537840999,-1459.13,0.00023532,2]
[382186654,1756537841008,-480.0,0.00023532,2]
[382186655,1756537841017,-480.0,0.00023532,2]
[382186656,1756537841027,-6712.3,0.00023532,2]
[382186657,1756537841037,-1595.93,0.00023532,2]
[382186658,1756537841048,-714.92,0.00023532,2]
[382186659,1756537841057,-480.0,0.00023532,2]
[382186660,1756537841066,-480.0,0.00023532,2]
[382186661,1756537841076,-480.0,0.00023532,2]
[382186662,1756537841086,-50000.0,0.00023532,2]
[382186663,1756537841096,-500.0,0.00023532,2]
[382186664,1756537841105,-480.0,0.00023631,2]
[382186665,1756537841115,-1238.21,0.00023631,2]
[382186666,1756537841124,-462.5377883,0.00023631,2]
[382186667,1756537841133,-1362.75,0.00023631,2]
[382186668,1756537841142,-2827.82,0.00023631,2]
[382186669,1756537841151,-533.57,0.00023631,2]
[382186670,1756537841161,-480.0,0.00023632,2]
[382186671,1756537841170,-720.87,0.00023632,2]
[382186672,1756537841179,-480.0,0.00023632,2]
[382186673,1756537841189,-480.0,0.00023632,2]
[382186674,1756537841198,-525.32,0.00023632,2]
[382186675,1756537841207,-503.48,0.00023632,2]
[382186676,1756537841217,-1627.06,0.00023632,2]
[382186677,1756537841230,-480.0,0.00023632,2]
[382186678,1756537841239,-480.0,0.00023632,2]
[382186679,1756537841248,-480.0,0.00023632,2]
[382186680,1756537841257,-480.0,0.00023632,2]
[382186681,1756537841267,-1400.56,0.00023632,2]
[382186682,1756537841276,-480.0,0.00023632,2]
[382186683,1756537841285,-250.74415239,0.00023632,2]
[382186684,1756537841296,-480.0,0.00023632,2]
[382186685,1756537841305,-480.0,0.00023632,2]
[382186686,1756537841314,-480.0,0.00023632,2]
[382186687,1756537841324,-415.23021839,0.00023632,2]
[382186688,1756537841333,-2880.58,0.00023632,2]
[382186689,1756537841342,-480.8791013,0.00023632,2]
[382186690,1756537841351,-480.0,0.00023632,2]
[382186691,1756537841360,-1324.45,0.00023632,2]
[382186692,1756537841370,-480.0,0.00023632,2]
[382186693,1756537841381,-1377.76,0.00023632,2]
[382186694,1756537841391,-480.0,0.00023632,2]
[382186695,1756537841400,-480.0,0.00023632,2]
[382186696,1756537841409,-480.0,0.00023632,2]
[382186697,1756537841419,-570.57,0.00023632,2]
[382186698,1756537841428,-480.0,0.00023632,2]
[382186699,1756537841437,-1354.53,0.00023632,2]
[382186700,1756537841447,-480.0,0.00023632,2]
[382186701,1756537841457,-2114.24,0.00023632,2]
[382186702,1756537841466,-480.0,0.00023632,2]
[382186703,1756537841475,-480.0,0.00023632,2]
[382186704,1756537841485,-480.0,0.00023632,2]
[382186705,1756537841494,-480.0,0.00023632,2]
[382186706,1756537841503,-170.59427032,0.00023632,2]
[382186707,1756537841513,-480.0,0.00023632,2]
[382186708,1756537841522,-1515.72,0.00023632,2]
[382186709,1756537841532,-480.0,0.00023632,2]
[382186710,1756537841541,-480.0,0.00023632,2]
[382186711,1756537841552,-480.0,0.00023632,2]
[382186712,1756537841561,-698.15,0.00023632,2]
[382186713,1756537841571,-1531.93,0.00023632,2]
[382186714,1756537841581,-480.0,0.00023632,2]
[382186715,1756537841591,-480.0,0.00023632,2]
[382186716,1756537841601,-480.0,0.00023632,2]
[382186717,1756537841610,-480.0,0.00023632,2]
[382186718,1756537841620,-481.81,0.00023632,2]
[382186719,1756537841631,-480.0,0.00023632,2]
[382186720,1756537841640,-480.0,0.00023632,2]
[382186721,1756537841649,-826.72,0.00023632,2]
[382186722,1756537841659,-480.0,0.00023632,2]
[382186723,1756537841670,-480.0,0.00023632,2]
[382186724,1756537841679,-1132.54,0.00023632,2]
[382186725,1756537841689,-609.19,0.00023632,2]
[382186726,1756537841699,-480.0,0.00023632,2]
[382186727,1756537841708,-1215.24,0.00023632,2]
[382186728,1756537841720,-480.0,0.00023632,2]
[382186729,1756537841730,-480.0,0.00023632,2]
[382186730,1756537841739,-480.0,0.00023632,2]
[382186731,1756537841749,-480.0,0.00023632,2]
[382186732,1756537841759,-480.0,0.00023632,2]
[382186733,1756537841768,-3222.92,0.00023632,2]
[382186734,1756537841779,-1373.22,0.00023632,2]
[382186735,1756537841788,-729.46,0.00023632,2]
[382186736,1756537841798,-480.0,0.00023632,2]
[382186737,1756537841807,-480.0,0.00023632,2]
[382186738,1756537841817,-532.78,0.00023632,2]
[382186739,1756537841826,-480.0,0.00023632,2]
[382186740,1756537841836,-480.0,0.00023632,2]
[382186741,1756537841845,-480.0,0.00023632,2]
[382186742,1756537841855,-480.0,0.00023632,2]
[382186743,1756537841864,-480.0,0.00023632,2]
[382186744,1756537841874,-611.98,0.00023632,2]
[382186745,1756537841883,-480.0,0.00023632,2]
[382186746,1756537841893,-480.0,0.00023632,2]
[382186747,1756537841903,-485.74476001,0.00023632,2]
[382186748,1756537841912,-480.0,0.00023632,2]
[382186749,1756537841921,-511.45694253,0.00023632,2]
[382186750,1756537841931,-1438.06,0.00023632,2]
[382186751,1756537841940,-483.5665704,0.00023632,2]
[382186752,1756537841949,-480.0,0.00023632,2]
[382186753,1756537841959,-491.54,0.00023632,2]
[382186754,1756537841968,-480.17,0.00023632,2]
[382186755,1756537841978,-480.0,0.00023632,2]
[382186756,1756537841987,-565.11,0.00023632,2]
[382186757,1756537841997,-480.0,0.00023632,2]
[382186758,1756537842006,-480.0,0.00023632,2]
[382186759,1756537842015,-480.0,0.00023632,2]
[382186760,1756537842025,-880.73,0.00023632,2]
[382186761,1756537842035,-480.0,0.00023632,2]
[382186762,1756537842047,-500.0,0.00023632,2]
[382186763,1756537842056,-480.0,0.00023632,2]
[382186764,1756537842066,-480.0,0.00023632,2]
[382186765,1756537842077,-1000.0,0.00023632,2]
[382186766,1756537842087,-750.02,0.00023632,2]
[382186767,1756537842097,-480.0,0.00023632,2]
[382186768,1756537842107,-480.0,0.00023632,2]
[382186769,1756537842116,-480.0,0.00023632,2]
[382186770,1756537842125,-480.0,0.00023632,2]
[382186771,1756537842136,-1272.72,0.00023632,2]
[382186772,1756537842147,-676.03,0.00023632,2]
[382186773,1756537842157,-480.0,0.00023632,2]
[382186774,1756537842167,-480.0,0.00023632,2]
[382186775,1756537842176,-480.0,0.00023632,2]
[382186776,1756537842185,-480.0,0.00023632,2]
[382186777,1756537842195,-480.0,0.00023632,2]
[382186778,1756537842205,-480.0,0.00023632,2]
[382186779,1756537842216,-485.86554319,0.00023632,2]
[382186780,1756537842228,-480.0,0.00023632,2]
[382186781,1756537842239,-480.0,0.00023632,2]
[382186782,1756537842250,-480.0,0.00023632,2]
[382186783,1756537842259,-480.0,0.00023632,2]
[382186784,1756537842271,-2020.68,0.00023632,2]
[382186785,1756537842281,-480.0,0.00023632,2]
[382186786,1756537842291,-480.0,0.00023632,2]
[382186787,1756537842303,-937.44,0.00023632,2]
[382186788,1756537842312,-781.08,0.00023632,2]
[382186789,1756537842322,-1169.52,0.00023632,2]
[382186790,1756537842331,-480.0,0.00023632,2]
[382186791,1756537842341,-546.2364117,0.00023632,2]
[382186792,1756537842351,-480.0,0.00023632,2]
[382186793,1756537842360,-480.0,0.00023632,2]
[382186794,1756537842369,-480.0,0.00023632,2]
[382186795,1756537842526,-480.0,0.00023632,2]
[382186796,1756537842536,-509.07670686,0.00023673,2]
[382186797,1756537842547,-500.0,0.00023673,2]
[382186798,1756537842557,-500.0,0.00023673,2]
[382186799,1756537842567,-1410.88,0.00023699,2]
[382186800,1756537842576,-1410.88,0.00023699,2]
[382186801,1756537842586,-1410.88,0.00023699,2]
[382186802,1756537842595,-1410.88,0.00023699,2]
[382186803,1756537842605,-1410.88,0.00023699,2]
[382186804,1756537842614,-1410.94449854,0.00023699,2]
[382186805,1756537842623,-2114.69,0.00023699,2]
[382186806,1756537842633,-2114.69,0.00023699,2]
[382186807,1756537842642,-2114.69,0.00023699,2]
[382186808,1756537842656,-2114.69,0.00023699,2]
[382186809,1756537842666,-2114.69,0.00023699,2]
[382186810,1756537842675,-2114.79175914,0.00023699,2]
[382186811,1756537842685,-151.0,0.00023699,7]
[382186812,1756537842695,-151.0,0.00023699,7]
[382186813,1756537842705,-153.250812,0.00023699,7]
[382186814,1756537842714,-151.0,0.00023699,7]
[382186815,1756537842724,-480.0,0.00023706,2]
[382186816,1756537842735,-1099.46,0.00023706,2]
[382186817,1756537842744,-480.0,0.00023706,2]
[382186818,1756537842753,-480.0,0.00023706,2]
[382186819,1756537842763,-480.0,0.00023732,2]
[382186820,1756537842772,-461.89746466,0.00023732,2]
[382186821,1756537842781,-480.0,0.00023732,2]
[382186822,1756537842791,-480.0,0.00023732,2]
[382186823,1756537842800,-480.0,0.00023732,2]
[382186824,1756537842809,-925.52,0.00023732,2]
[382186825,1756537842819,-480.0,0.00023732,2]
[382186826,1756537842828,-480.0,0.00023732,2]
[382186827,1756537842838,-480.0,0.00023732,2]
[382186828,1756537842847,-507.3,0.00023732,2]
[382186829,1756537842856,-1187.17,0.00023732,2]
[382186830,1756537842865,-693.15,0.00023732,2]
[382186831,1756537842875,-527.88,0.00023732,2]
[382186832,1756537842884,-480.0,0.00023732,2]
[382186833,1756537842893,-480.0,0.00023732,2]
[382186834,1756537842903,-879.98,0.00023732,2]
[382186835,1756537842912,-480.0,0.00023732,2]
[382186836,1756537842921,-484.74855582,0.00023732,2]
[382186837,1756537842931,-480.0,0.00023732,2]
[382186838,1756537842940,-523.37629757,0.00023732,2]
[382186839,1756537842949,-480.0,0.00023732,2]
[382186840,1756537842959,-480.0,0.00023732,2]
[382186841,1756537842969,-480.0,0.00023732,2]
[382186842,1756537842978,-480.0,0.00023732,2]
[382186843,1756537842988,-480.0,0.00023732,2]
[382186844,1756537842997,-480.0,0.00023732,2]
[382186845,1756537843007,-480.0,0.00023732,2]
[382186846,1756537843016,-1207.63,0.00023732,2]
[382186847,1756537843027,-480.0,0.00023732,2]
[382186848,1756537843036,-480.0,0.00023732,2]
[382186849,1756537843047,-480.0,0.00023732,2]
[382186850,1756537843058,-480.0,0.00023732,2]
[382186851,1756537843067,-480.0,0.00023732,2]
[382186852,1756537843077,-480.0,0.00023732,2]
[382186854,1756537843087,-480.0,0.00023732,2]
[382186856,1756537843098,-480.0,0.00023732,2]
[382186857,1756537843108,-480.0,0.00023732,2]
[382186858,1756537843117,-480.0,0.00023732,2]
[382186859,1756537843127,-480.0,0.00023732,2]
[382186860,1756537843136,-527.42594467,0.00023732,2]
[382186861,1756537843146,-504.91351985,0.00023732,2]
[382186862,1756537843156,-480.0,0.00023732,2]
[382186863,1756537843165,-486.69671766,0.00023732,2]
[382186864,1756537843175,-480.0,0.00023732,2]
[382186865,1756537843184,-480.0,0.00023732,2]
[382186866,1756537843194,-519.87,0.00023732,2]
[382186867,1756537843204,-480.0,0.00023732,2]
[382186869,1756537843214,-480.0,0.00023732,2]
[382186870,1756537843227,-480.0,0.00023732,2]
[382186871,1756537843236,-480.0,0.00023732,2]
[382186872,1756537843245,-480.0,0.00023732,2]
[382186874,1756537843255,-480.0,0.00023732,2]
[382186875,1756537843265,-592.52,0.00023732,2]
[382186877,1756537843275,-483.6,0.00023732,2]
[382186878,1756537843284,-480.0,0.00023732,2]
[382186879,1756537843294,-480.0,0.00023732,2]
[382186880,1756537843304,-480.0,0.00023806,2]
[382186881,1756537843314,-565.25,0.00023806,2]
[382186882,1756537843324,-746.69,0.00023806,2]
[382186883,1756537843334,-480.0,0.00023806,2]
[382186884,1756537843344,-480.0,0.00023806,2]
[382186885,1756537843355,-480.0,0.00023806,2]
[382186886,1756537843364,-480.0,0.00023806,2]
[382186887,1756537843373,-1911.48,0.00023806,2]
[382186888,1756537843383,-480.0,0.00023806,2]
[382186889,1756537843392,-480.0,0.00023806,2]
[382186890,1756537843402,-480.0,0.00023806,2]
[382186891,1756537843412,-480.0,0.00023806,2]
[382186892,1756537843423,-480.0,0.00023806,2]
[382186894,1756537843432,-520.67,0.00023806,2]
[382186895,1756537843443,-480.0,0.00023806,2]
[382186896,1756537843454,-700.17,0.00023806,2]
[382186897,1756537843464,-480.0,0.00023806,2]
[382186898,1756537843474,-480.25,0.00023806,2]
[382186899,1756537843484,-480.0,0.00023806,2]
[382186900,1756537843494,-1018.26,0.00023806,2]
[382186901,1756537843503,-480.0,0.00023806,2]
[382186902,1756537843515,-480.0,0.00023806,2]
[382186903,1756537843525,-480.0,0.00023806,2]
[382186904,1756537843536,-480.0,0.00023806,2]
[382186905,1756537843547,-480.0,0.00023806,2]
[382186906,1756537843556,-480.0,0.00023806,2]
[382186908,1756537843566,-363.89564432,0.00023806,2]
[382186909,1756537843575,-480.0,0.00023806,2]
[382186910,1756537843585,-480.0,0.00023806,2]
[382186911,1756537843594,-854.06,0.00023806,2]
[382186912,1756537843604,-1134.27,0.00023806,2]
[382186913,1756537843615,-480.0,0.00023806,2]
[382186914,1756537843625,-572.22156623,0.00023806,2]
[382186915,1756537843634,-480.0,0.00023806,2]
[382186916,1756537843644,-480.0,0.00023806,2]
[382186917,1756537843654,-480.0,0.00023806,2]
[382186918,1756537843663,-480.0,0.00023806,2]
[382186919,1756537843673,-480.0,0.00023806,2]
[382186920,1756537843683,-480.0,0.00023806,2]
[382186921,1756537843692,-480.0,0.00023806,2]
[382186922,1756537843702,-357.12882392,0.00023806,2]
[382186923,1756537843712,-480.0,0.00023806,2]
[382186924,1756537843722,-480.0,0.00023806,2]
[382186925,1756537843732,-530.27,0.00023806,2]
[382186926,1756537843743,-480.0,0.00023806,2]
[382186927,1756537843752,-480.0,0.00023806,2]
[382186928,1756537843762,-480.0,0.00023806,2]
[382186929,1756537843771,-480.0,0.00023806,2]
[382186930,1756537843781,-717.15,0.00023806,2]
[382186931,1756537843790,-480.0,0.00023806,2]
[382186932,1756537843801,-480.0,0.00023806,2]
[382186933,1756537843811,-480.0,0.00023806,2]
[382186934,1756537843820,-480.0,0.00023806,2]
[382186935,1756537843830,-1375.09,0.00023806,2]
[382186936,1756537843838,-922.15,0.00023806,2]
[382186937,1756537843847,-151.0,0.00023806,7]
[382186938,1756537843857,-480.0,0.00023806,2]
[382186939,1756537843867,-833.65,0.00023806,2]
[382186940,1756537843876,-819.16,0.00023806,2]
[382186941,1756537843885,-1648.16,0.00023806,2]
[382186942,1756537843895,-480.0,0.00023806,2]
[382186943,1756537843904,-1283.19,0.00023806,2]
[382186944,1756537843913,-480.0,0.00023806,2]
[382186945,1756537843922,-1310.83,0.00023806,2]
[382186946,1756537843931,-480.0,0.00023806,2]
[382186947,1756537843941,-480.0,0.00023806,2]
[382186948,1756537843950,-1365.42,0.00023806,2]
[382186949,1756537843961,-151.0,0.00023806,7]
[382186950,1756537843971,-480.0,0.00023806,2]
[382186951,1756537843981,-716.41,0.00023806,2]
[382186952,1756537843990,-480.0,0.00023806,2]
[382186953,1756537844000,-480.0,0.00023806,2]
[382186954,1756537844009,-1010.08,0.00023806,2]
[382186955,1756537844018,-1333.36,0.00023806,2]
[382186956,1756537844028,-480.0,0.00023806,2]
[382186957,1756537844038,-480.0,0.00023806,2]
[382186958,1756537844047,-480.0,0.00023806,2]
[382186959,1756537844057,-487.66,0.00023806,2]
[382186960,1756537844067,-480.0,0.00023806,2]
[382186961,1756537844076,-480.0,0.00023806,2]
[382186962,1756537844086,-480.0,0.00023806,2]
[382186963,1756537844098,-601.62,0.00023806,2]
[382186964,1756537844109,-480.0,0.00023806,2]
[382186965,1756537844119,-480.0,0.00023806,2]
[382186966,1756537844131,-480.0,0.00023806,2]
[382186967,1756537844141,-480.0,0.00023806,2]
[382186968,1756537844153,-480.0,0.00023806,2]
[382186969,1756537844163,-199.83275968,0.00023806,2]
[382186970,1756537844174,-480.0,0.00023806,2]
[382186971,1756537844184,-480.0,0.00023806,2]
[382186972,1756537844194,-642.09,0.00023806,2]
[382186973,1756537844204,-480.0,0.00023806,2]
[382186974,1756537844213,-480.0,0.00023806,2]
[382186975,1756537844224,-480.0,0.00023806,2]
[382186976,1756537844238,-480.0,0.00023806,2]
[382186977,1756537844249,-480.0,0.00023806,2]
[382186978,1756537844259,-594.59,0.00023806,2]
[382186979,1756537844269,-216.25802849,0.00023806,7]
[382186980,1756537844279,-480.0,0.00023806,2]
[382186981,1756537844289,-416.82454787,0.00023806,2]
[382186982,1756537844299,-480.0,0.00023806,2]
[382186983,1756537844310,-480.0,0.00023806,2]
[382186984,1756537844320,-480.0,0.00023806,2]
[382186985,1756537844329,-151.0,0.00023806,7]
[382186986,1756537844338,-480.0,0.00023806,2]
[382186987,1756537844347,-480.0,0.00023806,2]
[382186988,1756537844356,-506.38,0.00023806,2]
[382186989,1756537844366,-480.0,0.00023806,2]
[382186990,1756537844375,-500.0,0.00023806,2]
[382186991,1756537844384,-836.93,0.00023806,2]
[382186992,1756537844394,-4039.99,0.00023806,2]
[382186993,1756537844403,-548.7,0.00023806,2]
[382186994,1756537844413,-1528.17,0.00023806,2]
[382186995,1756537844422,-712.03,0.00023806,2]
[382186996,1756537844432,-480.0,0.00023806,2]
[382186997,1756537844441,-485.40736266,0.00023806,2]
[382186998,1756537844450,-480.0,0.00023806,2]
[382186999,1756537844461,-480.0,0.00023806,2]
[382187000,1756537844471,-480.0,0.00023806,2]
[382187001,1756537844480,-245.91164685,0.00023806,2]
[382187002,1756537844490,-480.0,0.00023806,2]
[382187003,1756537844500,-1549.38,0.00023806,2]
[382187004,1756537844509,-480.0,0.00023806,2]
[382187005,1756537844519,-480.0,0.00023806,2]
[382187006,1756537844528,-480.0,0.00023806,2]
[382187007,1756537844538,-598.61,0.00023806,2]
[382187008,1756537844548,-480.0,0.00023806,2]
[382187009,1756537844558,-1440.61,0.00023806,2]
[382187010,1756537844567,-480.0,0.00023806,2]
[382187011,1756537844577,-482.84426409,0.00023806,2]
[382187012,1756537844586,-600.59,0.00023806,2]
[382187013,1756537844596,-1346.85,0.00023806,2]
[382187014,1756537844605,-480.0,0.00023806,2]
[382187015,1756537844615,-480.0,0.00023806,2]
[382187016,1756537844625,-480.0,0.00023806,2]
[382187017,1756537844635,-480.0,0.00023806,2]
[382187018,1756537844645,-1195.24,0.00023806,2]
[382187019,1756537844655,-1514.57,0.00023806,2]
[382187020,1756537844665,-480.0,0.00023806,2]
[382187021,1756537844675,-519.64,0.00023806,2]
[382187022,1756537844685,-1194.39,0.00023806,2]
[382187023,1756537844695,-1760.01,0.00023806,2]
[382187024,1756537844704,-1410.73,0.00023806,2]
[382187025,1756537844715,-480.0,0.00023806,2]
[382187026,1756537844726,-480.0,0.00023806,2]
[382187027,1756537844736,-249.06316825,0.00023806,2]
[382187028,1756537844746,-1231.82,0.00023806,2]
[382187029,1756537844755,-829.54,0.00023806,2]
[382187030,1756537844765,-480.0,0.00023806,2]
[382187031,1756537844775,-1174.91,0.00023806,2]
[382187032,1756537844785,-1627.32,0.00023806,2]
[382187033,1756537844796,-1800.38,0.00023806,2]
[382187034,1756537844805,-480.0,0.00023806,2]
[382187035,1756537844815,-747.72,0.00023806,2]
[382187036,1756537844824,-480.0,0.00023806,2]
[382187037,1756537844833,-480.0,0.00023806,2]
[382187038,1756537844843,-1119.64,0.00023806,2]
[382187039,1756537844853,-1384.91,0.00023806,2]
[382187040,1756537844863,-1206.27,0.00023806,2]
[382187041,1756537844872,-480.0,0.00023806,2]
[382187042,1756537844882,-480.0,0.00023806,2]
[382187043,1756537844891,-575.23,0.00023806,2]
[382187044,1756537844901,-480.0,0.00023806,2]
[382187045,1756537844910,-480.0,0.00023806,2]
[382187046,1756537844920,-480.0,0.00023806,2]
[382187047,1756537844931,-1376.87,0.00023806,2]
[382187048,1756537844942,-480.0,0.00023806,2]
[382187049,1756537844953,-480.0,0.00023806,2]
[382187050,1756537844963,-480.0,0.00023806,2]
[382187051,1756537844973,-480.0,0.00023806,2]
[382187052,1756537844983,-480.0,0.00023806,2]
[382187053,1756537844994,-525.07,0.00023806,2]
[382187054,1756537845005,-480.0,0.00023806,2]
[382187055,1756537845015,-1373.28,0.00023806,2]
[382187056,1756537845025,-1626.35,0.00023806,2]
[382187057,1756537845035,-480.0,0.00023806,2]
[382187058,1756537845045,-1389.31,0.00023806,2]
[382187059,1756537845054,-480.0,0.00023806,2]
[382187060,1756537845064,-1473.01,0.00023806,2]
[382187061,1756537845075,-1675.39,0.00023806,2]
[382187062,1756537845084,-591.62,0.00023806,2]
[382187063,1756537845093,-1600.23,0.00023806,2]
[382187064,1756537845104,-480.0,0.00023806,2]
[382187065,1756537845114,-480.0,0.00023806,2]
[382187066,1756537845124,-480.0,0.00023806,2]
[382187067,1756537845134,-152.747533,0.00023806,7]